[Event "Titled Tuesday Blitz June 13 Early 2023"]
[White "Sadhwani, Raunak"]
[Black "Babazada, Khazar"]
[WhiteFideId "35093487"]
[BlackFideId "13413554"]
[WhiteElo "2631"]
[BlackElo "2369"]
[Result "1-0"]
[Round "10"]
[TimeControl "180+2"]
[Date "2023.06.13"]
[WhiteClock "0:00:10"]
[BlackClock "0:00:15"]
[Board "7"]

1. e4 {[%clk 0:03:00]}  e5 {[%clk 0:02:55]} 2. Nf3 {[%clk 0:03:00]}  Nc6 {[%clk 0:02:55]} 3. Bc4 {[%clk 0:03:01]}  Nf6 {[%clk 0:02:55]} 4. d3 {[%clk 0:03:01]}  Bc5 {[%clk 0:02:54]} 5. O-O {[%clk 0:03:01]}  d6 {[%clk 0:02:55]} 6. c3 {[%clk 0:03:01]}  O-O {[%clk 0:02:54]} 7. h3 {[%clk 0:03:01]}  a5 {[%clk 0:02:54]} 8. Re1 {[%clk 0:02:58]}  Be6 {[%clk 0:02:50]} 9. Bb5 {[%clk 0:02:54]}  Ba7 {[%clk 0:02:46]} 10. d4 {[%clk 0:02:43]}  exd4 {[%clk 0:02:41]} 11. cxd4 {[%clk 0:02:41]}  d5 {[%clk 0:02:42]} 12. e5 {[%clk 0:02:38]}  Ne4 {[%clk 0:02:42]} 13. Nc3 {[%clk 0:02:19]}  f5 {[%clk 0:02:42]} 14. exf6 {[%clk 0:02:14]}  Qxf6 {[%clk 0:02:40]} 15. Bxc6 {[%clk 0:01:44]}  bxc6 {[%clk 0:02:38]} 16. Nxe4 {[%clk 0:01:43]}  dxe4 {[%clk 0:02:39]} 17. Rxe4 {[%clk 0:01:44]}  Bd5 {[%clk 0:02:26]} 18. Rf4 {[%clk 0:01:38]}  Qe7 {[%clk 0:02:04]} 19. Ne1 {[%clk 0:01:14]}  Rxf4 {[%clk 0:01:47]} 20. Bxf4 {[%clk 0:01:15]}  Rf8 {[%clk 0:01:48]} 21. Be3 {[%clk 0:01:12]}  c5 {[%clk 0:01:38]} 22. dxc5 {[%clk 0:01:10]}  c6 {[%clk 0:01:38]} 23. Qg4 {[%clk 0:00:50]}  Bb8 {[%clk 0:01:37]} 24. Nd3 {[%clk 0:00:46]}  Qf7 {[%clk 0:00:33]} 25. Re1 {[%clk 0:00:37]}  Bxa2 {[%clk 0:00:33]} 26. Bd4 {[%clk 0:00:37]}  Bd5 {[%clk 0:00:33]} 27. Be5 {[%clk 0:00:34]}  Bxe5 {[%clk 0:00:31]} 28. Rxe5 {[%clk 0:00:35]}  Bc4 {[%clk 0:00:29]} 29. Ne1 {[%clk 0:00:19]}  Qxf2+ {[%clk 0:00:26]} 30. Kh2 {[%clk 0:00:20]}  Bd5 {[%clk 0:00:26]} 31. Nd3 {[%clk 0:00:14]}  Qf6 {[%clk 0:00:25]} 32. Re3 {[%clk 0:00:12]}  h6 {[%clk 0:00:24]} 33. Ne5 {[%clk 0:00:12]}  Kh7 {[%clk 0:00:20]} 34. Qg3 {[%clk 0:00:05]}  Qf4 {[%clk 0:00:19]} 35. Nd7 {[%clk 0:00:04]}  Rf5 {[%clk 0:00:18]} 36. Nb6 {[%clk 0:00:03]}  Bf7 {[%clk 0:00:16]} 37. Rf3 {[%clk 0:00:03]}  Qxg3+ {[%clk 0:00:15]} 38. Kxg3 {[%clk 0:00:03]}  Rxf3+ {[%clk 0:00:14]} 39. Kxf3 {[%clk 0:00:03]}  Kg6 {[%clk 0:00:15]} 40. Ke4 {[%clk 0:00:02]}  Kg5 {[%clk 0:00:15]} 41. Ke5 {[%clk 0:00:02]}  Kh4 {[%clk 0:00:15]} 42. Kd6 {[%clk 0:00:03]}  Kg3 {[%clk 0:00:13]} 43. Kxc6 {[%clk 0:00:03]}  Kxg2 {[%clk 0:00:12]} 44. Kd6 {[%clk 0:00:03]}  Bg6 {[%clk 0:00:12]} 45. c6 {[%clk 0:00:03]}  Bd3 {[%clk 0:00:11]} 46. c7 {[%clk 0:00:02]}  Ba6 {[%clk 0:00:12]} 47. h4 {[%clk 0:00:03]}  g5 {[%clk 0:00:11]} 48. h5 {[%clk 0:00:03]}  Kh2 {[%clk 0:00:10]} 49. Nd5 {[%clk 0:00:03]}  g4 {[%clk 0:00:11]} 50. Ke5 {[%clk 0:00:03]}  g3 {[%clk 0:00:11]} 51. Nf4 {[%clk 0:00:04]}  g2 {[%clk 0:00:11]} 52. Nxg2 {[%clk 0:00:05]}  Kxg2 {[%clk 0:00:12]} 53. Kf6 {[%clk 0:00:05]}  Kf2 {[%clk 0:00:10]} 54. Kg6 {[%clk 0:00:06]}  Ke2 {[%clk 0:00:11]} 55. Kxh6 {[%clk 0:00:07]}  Kd2 {[%clk 0:00:12]} 56. Kg5 {[%clk 0:00:08]}  Kc2 {[%clk 0:00:13]} 57. h6 {[%clk 0:00:09]}  Kxb2 {[%clk 0:00:14]} 58. h7 {[%clk 0:00:09]}  a4 {[%clk 0:00:15]} 59. h8=Q+ {[%clk 0:00:10]}  Kb3 {[%clk 0:00:15]} 60. Qb8+ {[%clk 0:00:10]} 1-0


[Site "https://www.chess.com"]

[Event "Titled Tuesday Blitz June 13 Early 2023"]
[White "Bharath Subramaniyam H"]
[Black "Lintchevski, Daniil"]
[WhiteFideId "46634827"]
[BlackFideId "4171055"]
[WhiteElo "2400"]
[BlackElo "2559"]
[Result "1-0"]
[Round "10"]
[TimeControl "180+2"]
[Date "2023.06.13"]
[WhiteClock "0:00:05"]
[BlackClock "0:00:00"]
[Board "8"]

1. b3 {[%clk 0:03:00]}  Nf6 {[%clk 0:02:58]} 2. Bb2 {[%clk 0:03:00]}  g6 {[%clk 0:02:58]} 3. Nf3 {[%clk 0:03:01]}  Bg7 {[%clk 0:02:58]} 4. g3 {[%clk 0:03:02]}  O-O {[%clk 0:02:59]} 5. Bg2 {[%clk 0:03:02]}  b6 {[%clk 0:02:57]} 6. c4 {[%clk 0:03:00]}  Bb7 {[%clk 0:02:57]} 7. d4 {[%clk 0:02:59]}  e6 {[%clk 0:02:55]} 8. O-O {[%clk 0:02:59]}  d5 {[%clk 0:02:55]} 9. a4 {[%clk 0:02:53]}  a5 {[%clk 0:02:55]} 10. Na3 {[%clk 0:02:50]}  Na6 {[%clk 0:02:55]} 11. Rc1 {[%clk 0:02:49]}  Ne4 {[%clk 0:02:52]} 12. e3 {[%clk 0:02:48]}  Qe7 {[%clk 0:02:43]} 13. Qe2 {[%clk 0:02:43]}  Rfd8 {[%clk 0:02:43]} 14. Nb5 {[%clk 0:02:32]}  c6 {[%clk 0:02:39]} 15. Nc3 {[%clk 0:02:32]}  c5 {[%clk 0:02:36]} 16. Nb5 {[%clk 0:02:10]}  Nb4 {[%clk 0:02:33]} 17. Rfd1 {[%clk 0:02:05]}  Rac8 {[%clk 0:02:32]} 18. dxc5 {[%clk 0:02:00]}  bxc5 {[%clk 0:02:29]} 19. Bxg7 {[%clk 0:01:59]}  Kxg7 {[%clk 0:02:30]} 20. cxd5 {[%clk 0:01:59]}  exd5 {[%clk 0:02:30]} 21. Nd2 {[%clk 0:01:55]}  Qf6 {[%clk 0:02:22]} 22. Bh3 {[%clk 0:01:19]}  Rb8 {[%clk 0:02:18]} 23. Nxe4 {[%clk 0:01:03]}  dxe4 {[%clk 0:02:19]} 24. Rxd8 {[%clk 0:01:02]}  Rxd8 {[%clk 0:02:20]} 25. Rxc5 {[%clk 0:01:01]}  Nd3 {[%clk 0:02:13]} 26. Rc7 {[%clk 0:00:59]}  Qa1+ {[%clk 0:02:10]} 27. Bf1 {[%clk 0:00:57]}  Ba6 {[%clk 0:01:52]} 28. Qc2 {[%clk 0:00:56]}  Ne1 {[%clk 0:01:47]} 29. Qc4 {[%clk 0:00:52]}  Nf3+ {[%clk 0:01:35]} 30. Kg2 {[%clk 0:00:52]}  Ne1+ {[%clk 0:01:31]} 31. Kh1 {[%clk 0:00:50]}  Qf6 {[%clk 0:01:31]} 32. Qe2 {[%clk 0:00:32]}  Nf3 {[%clk 0:01:31]} 33. Rc2 {[%clk 0:00:28]}  h5 {[%clk 0:01:24]} 34. Qc4 {[%clk 0:00:25]}  Rd1 {[%clk 0:01:21]} 35. Rc1 {[%clk 0:00:12]}  Nd2 {[%clk 0:01:14]} 36. Qc2 {[%clk 0:00:12]}  Rxc1 {[%clk 0:01:14]} 37. Qxc1 {[%clk 0:00:13]}  Qxf2 {[%clk 0:01:10]} 38. Bg2 {[%clk 0:00:12]}  Qxe3 {[%clk 0:01:07]} 39. Nc3 {[%clk 0:00:09]}  Bd3 {[%clk 0:00:51]} 40. Nd5 {[%clk 0:00:08]}  Qd4 {[%clk 0:00:52]} 41. h4 {[%clk 0:00:05]}  Qxd5 {[%clk 0:00:35]} 42. Qxd2 {[%clk 0:00:05]}  Qd4 {[%clk 0:00:35]} 43. Qxa5 {[%clk 0:00:04]}  e3 {[%clk 0:00:35]} 44. Qe1 {[%clk 0:00:04]}  Be4 {[%clk 0:00:11]} 45. Bxe4 {[%clk 0:00:04]}  Qxe4+ {[%clk 0:00:12]} 46. Kg1 {[%clk 0:00:05]}  Qd3 {[%clk 0:00:12]} 47. a5 {[%clk 0:00:05]}  Qd2 {[%clk 0:00:11]} 48. Kf1 {[%clk 0:00:06]}  Qd3+ {[%clk 0:00:10]} 49. Qe2 {[%clk 0:00:04]}  Qxb3 {[%clk 0:00:10]} 50. a6 {[%clk 0:00:05]}  Qa3 {[%clk 0:00:09]} 51. Kg2 {[%clk 0:00:06]}  f5 {[%clk 0:00:02]} 52. Kf3 {[%clk 0:00:06]}  Qd6 {[%clk 0:00:01]} 53. Qc4 {[%clk 0:00:05]}  e2 {[%clk 0:00:00]} 54. Kxe2 {[%clk 0:00:05]} 1-0


[Site "https://www.chess.com"]

[Event "Titled Tuesday Blitz June 13 Early 2023"]
[White "Galchenko, Matvey"]
[Black "Kramnik, Vladimir"]
[WhiteFideId "24175480"]
[BlackFideId "4101588"]
[WhiteElo "2423"]
[BlackElo "2703"]
[Result "1-0"]
[Round "10"]
[TimeControl "180+2"]
[Date "2023.06.13"]
[WhiteClock "0:00:09"]
[BlackClock "0:00:00"]
[Board "9"]

1. f4 {[%clk 0:02:53]}  d5 {[%clk 0:02:58]} 2. Nf3 {[%clk 0:02:53]}  Nf6 {[%clk 0:02:58]} 3. g3 {[%clk 0:02:54]}  e6 {[%clk 0:02:58]} 4. Bg2 {[%clk 0:02:54]}  Be7 {[%clk 0:02:58]} 5. O-O {[%clk 0:02:55]}  b5 {[%clk 0:02:57]} 6. d3 {[%clk 0:02:40]}  Bb7 {[%clk 0:02:57]} 7. a4 {[%clk 0:02:38]}  b4 {[%clk 0:02:53]} 8. a5 {[%clk 0:02:38]}  O-O {[%clk 0:02:51]} 9. Ne5 {[%clk 0:02:38]}  c5 {[%clk 0:02:42]} 10. Qe1 {[%clk 0:02:32]}  a6 {[%clk 0:02:36]} 11. c3 {[%clk 0:02:23]}  Nc6 {[%clk 0:02:29]} 12. Nxc6 {[%clk 0:02:14]}  Bxc6 {[%clk 0:02:28]} 13. Nd2 {[%clk 0:02:00]}  bxc3 {[%clk 0:02:25]} 14. bxc3 {[%clk 0:02:00]}  Rb8 {[%clk 0:02:23]} 15. Nf3 {[%clk 0:01:45]}  d4 {[%clk 0:02:18]} 16. cxd4 {[%clk 0:01:25]}  Bxf3 {[%clk 0:02:12]} 17. Rxf3 {[%clk 0:01:26]}  cxd4 {[%clk 0:01:59]} 18. Bd2 {[%clk 0:01:17]}  Nd5 {[%clk 0:01:53]} 19. Rf1 {[%clk 0:01:14]}  Nc3 {[%clk 0:01:39]} 20. f5 {[%clk 0:01:01]}  exf5 {[%clk 0:01:31]} 21. Rxf5 {[%clk 0:01:00]}  Qd7 {[%clk 0:01:31]} 22. Rf2 {[%clk 0:00:44]}  Rfe8 {[%clk 0:01:16]} 23. Rc1 {[%clk 0:00:17]}  Bb4 {[%clk 0:01:15]} 24. Qf1 {[%clk 0:00:15]}  Re7 {[%clk 0:00:47]} 25. Bf3 {[%clk 0:00:14]}  Bxa5 {[%clk 0:00:34]} 26. Ra1 {[%clk 0:00:14]}  Rb5 {[%clk 0:00:31]} 27. Qg2 {[%clk 0:00:13]}  Rc5 {[%clk 0:00:21]} 28. Kh1 {[%clk 0:00:13]}  h5 {[%clk 0:00:20]} 29. g4 {[%clk 0:00:10]}  hxg4 {[%clk 0:00:18]} 30. Bxg4 {[%clk 0:00:10]}  Qc6 {[%clk 0:00:17]} 31. Bf3 {[%clk 0:00:11]}  Qg6 {[%clk 0:00:16]} 32. Qh3 {[%clk 0:00:07]}  Qf6 {[%clk 0:00:13]} 33. Rg2 {[%clk 0:00:06]}  Nxe2 {[%clk 0:00:07]} 34. Bxa5 {[%clk 0:00:04]}  Nf4 {[%clk 0:00:07]} 35. Qg3 {[%clk 0:00:03]}  Nxg2 {[%clk 0:00:07]} 36. Bxg2 {[%clk 0:00:03]}  Rg5 {[%clk 0:00:05]} 37. Qb8+ {[%clk 0:00:03]}  Kh7 {[%clk 0:00:06]} 38. Qb7 {[%clk 0:00:02]}  g6 {[%clk 0:00:04]} 39. Qf3 {[%clk 0:00:02]}  Rf5 {[%clk 0:00:04]} 40. Qh3+ {[%clk 0:00:01]}  Rh5 {[%clk 0:00:04]} 41. Qg3 {[%clk 0:00:02]}  Qg5 {[%clk 0:00:03]} 42. Qxg5 {[%clk 0:00:02]}  Rxg5 {[%clk 0:00:03]} 43. Bd8 {[%clk 0:00:03]}  Rxg2 {[%clk 0:00:02]} 44. Bxe7 {[%clk 0:00:02]}  Rd2 {[%clk 0:00:01]} 45. Ra3 {[%clk 0:00:03]}  Rd1+ {[%clk 0:00:01]} 46. Kg2 {[%clk 0:00:03]}  Rd2+ {[%clk 0:00:02]} 47. Kg3 {[%clk 0:00:04]}  a5 {[%clk 0:00:02]} 48. Bc5 {[%clk 0:00:04]}  a4 {[%clk 0:00:02]} 49. Bxd4 {[%clk 0:00:05]}  g5 {[%clk 0:00:03]} 50. Be3 {[%clk 0:00:06]}  Re2 {[%clk 0:00:02]} 51. Bxg5 {[%clk 0:00:06]}  Kg6 {[%clk 0:00:02]} 52. Bf4 {[%clk 0:00:06]}  f6 {[%clk 0:00:03]} 53. Kf3 {[%clk 0:00:07]}  Rc2 {[%clk 0:00:02]} 54. Rxa4 {[%clk 0:00:07]}  Rc3 {[%clk 0:00:02]} 55. Rd4 {[%clk 0:00:08]}  Rb3 {[%clk 0:00:00]} 56. Rd6 {[%clk 0:00:09]} 1-0


[Site "https://www.chess.com"]

[Event "Titled Tuesday Blitz June 13 Early 2023"]
[White "Keymer, Vincent"]
[Black "Nazari, Arad"]
[WhiteFideId "12940690"]
[BlackFideId "12577324"]
[WhiteElo "2669"]
[BlackElo "2175"]
[Result "1-0"]
[Round "10"]
[TimeControl "180+2"]
[Date "2023.06.13"]
[WhiteClock "0:00:07"]
[BlackClock "0:00:00"]
[Board "12"]

1. a3 {[%clk 0:03:00]}  g6 {[%clk 0:02:59]} 2. d4 {[%clk 0:02:59]}  Bg7 {[%clk 0:02:58]} 3. e4 {[%clk 0:02:59]}  d5 {[%clk 0:02:36]} 4. exd5 {[%clk 0:02:54]}  Qxd5 {[%clk 0:02:33]} 5. Nf3 {[%clk 0:02:54]}  Nf6 {[%clk 0:02:26]} 6. Nc3 {[%clk 0:02:41]}  Qd8 {[%clk 0:02:14]} 7. Bc4 {[%clk 0:02:41]}  a6 {[%clk 0:02:04]} 8. Bf4 {[%clk 0:02:07]}  b5 {[%clk 0:01:56]} 9. Ba2 {[%clk 0:02:07]}  Bb7 {[%clk 0:01:56]} 10. Qe2 {[%clk 0:02:08]}  O-O {[%clk 0:01:55]} 11. O-O-O {[%clk 0:02:06]}  Nbd7 {[%clk 0:01:45]} 12. h4 {[%clk 0:02:05]}  Nb6 {[%clk 0:01:32]} 13. h5 {[%clk 0:02:01]}  Nfd5 {[%clk 0:01:20]} 14. hxg6 {[%clk 0:01:34]}  hxg6 {[%clk 0:01:17]} 15. Nxd5 {[%clk 0:01:26]}  Bxd5 {[%clk 0:01:13]} 16. Bxd5 {[%clk 0:01:21]}  Nxd5 {[%clk 0:01:14]} 17. Be5 {[%clk 0:01:13]}  Qd7 {[%clk 0:00:58]} 18. Qe4 {[%clk 0:01:11]}  Rfd8 {[%clk 0:00:53]} 19. Ng5 {[%clk 0:00:36]}  Qf5 {[%clk 0:00:34]} 20. Qh4 {[%clk 0:00:19]}  f6 {[%clk 0:00:33]} 21. f4 {[%clk 0:00:16]}  Ne3 {[%clk 0:00:13]} 22. Rd3 {[%clk 0:00:12]}  fxe5 {[%clk 0:00:04]} 23. Rxe3 {[%clk 0:00:09]}  Rxd4 {[%clk 0:00:02]} 24. g4 {[%clk 0:00:07]}  Qf6 {[%clk 0:00:01]} 25. fxe5 {[%clk 0:00:06]}  Qf4 {[%clk 0:00:01]} 26. Qh7+ {[%clk 0:00:07]}  Kf8 {[%clk 0:00:00]} 27. Ne6+ {[%clk 0:00:07]} 1-0


[Site "https://www.chess.com"]

[Event "Titled Tuesday Blitz June 13 Early 2023"]
[White "Krzyzanowski, Marcin"]
[Black "Swiercz, Dariusz"]
[WhiteFideId "1132199"]
[BlackFideId "1126881"]
[WhiteElo "2471"]
[BlackElo "2620"]
[Result "0-1"]
[Round "10"]
[TimeControl "180+2"]
[Date "2023.06.13"]
[WhiteClock "0:00:03"]
[BlackClock "0:00:13"]
[Board "17"]

1. Nf3 {[%clk 0:03:00]}  Nf6 {[%clk 0:02:58]} 2. c4 {[%clk 0:02:59]}  g6 {[%clk 0:02:58]} 3. Nc3 {[%clk 0:02:59]}  Bg7 {[%clk 0:02:58]} 4. g3 {[%clk 0:02:59]}  d6 {[%clk 0:02:58]} 5. Bg2 {[%clk 0:02:59]}  O-O {[%clk 0:02:59]} 6. O-O {[%clk 0:03:00]}  c6 {[%clk 0:03:00]} 7. d4 {[%clk 0:03:00]}  Bf5 {[%clk 0:03:00]} 8. Nh4 {[%clk 0:02:59]}  Be6 {[%clk 0:02:58]} 9. b3 {[%clk 0:02:57]}  d5 {[%clk 0:02:58]} 10. cxd5 {[%clk 0:02:39]}  cxd5 {[%clk 0:02:57]} 11. Bb2 {[%clk 0:02:34]}  Nc6 {[%clk 0:02:57]} 12. Rc1 {[%clk 0:02:34]}  Rc8 {[%clk 0:02:57]} 13. Nf3 {[%clk 0:02:32]}  Bf5 {[%clk 0:02:32]} 14. Ne5 {[%clk 0:02:23]}  Ne4 {[%clk 0:02:15]} 15. Nxe4 {[%clk 0:02:16]}  Bxe4 {[%clk 0:02:10]} 16. Nxc6 {[%clk 0:02:09]}  Rxc6 {[%clk 0:02:02]} 17. Rxc6 {[%clk 0:02:06]}  bxc6 {[%clk 0:01:40]} 18. Qd2 {[%clk 0:01:40]}  Bxg2 {[%clk 0:01:34]} 19. Kxg2 {[%clk 0:01:41]}  Qd7 {[%clk 0:01:21]} 20. Rc1 {[%clk 0:01:41]}  Rc8 {[%clk 0:01:20]} 21. e3 {[%clk 0:01:30]}  h5 {[%clk 0:01:20]} 22. h4 {[%clk 0:01:30]}  Bf6 {[%clk 0:01:19]} 23. Qd3 {[%clk 0:01:23]}  c5 {[%clk 0:01:08]} 24. Kg1 {[%clk 0:00:59]}  Qb7 {[%clk 0:00:56]} 25. Rc2 {[%clk 0:00:50]}  c4 {[%clk 0:00:48]} 26. bxc4 {[%clk 0:00:50]}  Rxc4 {[%clk 0:00:44]} 27. Rxc4 {[%clk 0:00:47]}  dxc4 {[%clk 0:00:45]} 28. Qc2 {[%clk 0:00:46]}  e6 {[%clk 0:00:40]} 29. Bc3 {[%clk 0:00:42]}  Qb5 {[%clk 0:00:35]} 30. e4 {[%clk 0:00:39]}  Be7 {[%clk 0:00:29]} 31. Qd2 {[%clk 0:00:37]}  Qb1+ {[%clk 0:00:28]} 32. Qe1 {[%clk 0:00:36]}  Qxe1+ {[%clk 0:00:18]} 33. Bxe1 {[%clk 0:00:36]}  f5 {[%clk 0:00:19]} 34. f3 {[%clk 0:00:34]}  Kf7 {[%clk 0:00:17]} 35. Kf2 {[%clk 0:00:34]}  Ke8 {[%clk 0:00:17]} 36. Ke3 {[%clk 0:00:34]}  Bd6 {[%clk 0:00:15]} 37. exf5 {[%clk 0:00:23]}  gxf5 {[%clk 0:00:15]} 38. d5 {[%clk 0:00:08]}  Bc5+ {[%clk 0:00:15]} 39. Kf4 {[%clk 0:00:08]}  exd5 {[%clk 0:00:15]} 40. Ke5 {[%clk 0:00:05]}  d4 {[%clk 0:00:12]} 41. Kd5 {[%clk 0:00:05]}  Bb6 {[%clk 0:00:09]} 42. Kxc4 {[%clk 0:00:06]}  Kd7 {[%clk 0:00:10]} 43. Kd5 {[%clk 0:00:04]}  d3 {[%clk 0:00:05]} 44. Kc4 {[%clk 0:00:03]}  Bf2 {[%clk 0:00:06]} 45. Bd2 {[%clk 0:00:02]}  Bxg3 {[%clk 0:00:06]} 46. Kxd3 {[%clk 0:00:02]}  Bxh4 {[%clk 0:00:06]} 47. Kd4 {[%clk 0:00:02]}  Ke6 {[%clk 0:00:06]} 48. Kc5 {[%clk 0:00:02]}  Bf2+ {[%clk 0:00:06]} 49. Kc6 {[%clk 0:00:03]}  h4 {[%clk 0:00:07]} 50. Bf4 {[%clk 0:00:03]}  Bg3 {[%clk 0:00:07]} 51. Be3 {[%clk 0:00:04]}  h3 {[%clk 0:00:07]} 52. Bg1 {[%clk 0:00:04]}  h2 {[%clk 0:00:08]} 53. Bxh2 {[%clk 0:00:05]}  Bxh2 {[%clk 0:00:09]} 54. Kb7 {[%clk 0:00:05]}  Bg1 {[%clk 0:00:10]} 55. a4 {[%clk 0:00:05]}  Kd5 {[%clk 0:00:10]} 56. a5 {[%clk 0:00:05]}  Bc5 {[%clk 0:00:10]} 57. a6 {[%clk 0:00:05]}  Kd4 {[%clk 0:00:11]} 58. Kc6 {[%clk 0:00:05]}  Bb6 {[%clk 0:00:12]} 59. Kd6 {[%clk 0:00:04]}  Ke3 {[%clk 0:00:12]} 60. Ke5 {[%clk 0:00:03]}  f4 {[%clk 0:00:13]} 0-1


[Site "https://www.chess.com"]

[Event "Titled Tuesday Blitz June 13 Early 2023"]
[White "Miladinovic, Igor"]
[Black "Bacrot, Etienne"]
[WhiteFideId "4203380"]
[BlackFideId "605506"]
[WhiteElo "2568"]
[BlackElo "2672"]
[Result "1/2-1/2"]
[Round "10"]
[TimeControl "180+2"]
[Date "2023.06.13"]
[WhiteClock "0:00:11"]
[BlackClock "0:00:13"]
[Board "19"]

1. d4 {[%clk 0:03:00]}  g6 {[%clk 0:03:00]} 2. e4 {[%clk 0:03:00]}  Bg7 {[%clk 0:03:00]} 3. Nc3 {[%clk 0:03:01]}  d6 {[%clk 0:03:01]} 4. Be3 {[%clk 0:03:01]}  Nf6 {[%clk 0:03:01]} 5. f3 {[%clk 0:03:02]}  a6 {[%clk 0:03:01]} 6. Qd2 {[%clk 0:03:01]}  h6 {[%clk 0:03:00]} 7. g4 {[%clk 0:02:59]}  b5 {[%clk 0:03:00]} 8. h4 {[%clk 0:02:59]}  Bb7 {[%clk 0:02:57]} 9. Nh3 {[%clk 0:02:49]}  e6 {[%clk 0:02:53]} 10. a4 {[%clk 0:02:41]}  b4 {[%clk 0:02:53]} 11. Ne2 {[%clk 0:02:42]}  a5 {[%clk 0:02:37]} 12. Ng3 {[%clk 0:02:42]}  Nbd7 {[%clk 0:02:34]} 13. O-O-O {[%clk 0:02:27]}  Qe7 {[%clk 0:02:31]} 14. g5 {[%clk 0:02:17]}  hxg5 {[%clk 0:02:30]} 15. hxg5 {[%clk 0:02:17]}  Nh5 {[%clk 0:02:29]} 16. Nxh5 {[%clk 0:02:16]}  Rxh5 {[%clk 0:02:29]} 17. Bb5 {[%clk 0:02:16]}  c6 {[%clk 0:02:27]} 18. Be2 {[%clk 0:02:14]}  O-O-O {[%clk 0:02:22]} 19. Nf4 {[%clk 0:02:03]}  Rxh1 {[%clk 0:02:18]} 20. Rxh1 {[%clk 0:02:04]}  e5 {[%clk 0:02:15]} 21. Nh3 {[%clk 0:01:48]}  exd4 {[%clk 0:01:21]} 22. Bxd4 {[%clk 0:01:49]}  Bxd4 {[%clk 0:01:20]} 23. Qxd4 {[%clk 0:01:50]}  d5 {[%clk 0:01:18]} 24. Qa7 {[%clk 0:01:41]}  Qc5 {[%clk 0:01:08]} 25. Qxc5 {[%clk 0:01:40]}  Nxc5 {[%clk 0:01:08]} 26. exd5 {[%clk 0:01:25]}  cxd5 {[%clk 0:01:01]} 27. Nf4 {[%clk 0:01:19]}  Nxa4 {[%clk 0:00:54]} 28. Rh7 {[%clk 0:01:19]}  Rf8 {[%clk 0:00:53]} 29. Nd3 {[%clk 0:00:55]}  Ba6 {[%clk 0:00:31]} 30. Nf4 {[%clk 0:00:47]}  Bxe2 {[%clk 0:00:31]} 31. Nxe2 {[%clk 0:00:48]}  Kd7 {[%clk 0:00:29]} 32. Nd4 {[%clk 0:00:43]}  Kd6 {[%clk 0:00:29]} 33. f4 {[%clk 0:00:42]}  Nc5 {[%clk 0:00:29]} 34. f5 {[%clk 0:00:38]}  Ke5 {[%clk 0:00:26]} 35. fxg6 {[%clk 0:00:34]}  Kxd4 {[%clk 0:00:26]} 36. gxf7 {[%clk 0:00:32]}  Ne6 {[%clk 0:00:14]} 37. g6 {[%clk 0:00:31]}  Ke5 {[%clk 0:00:10]} 38. g7 {[%clk 0:00:30]}  Nxg7 {[%clk 0:00:11]} 39. Rxg7 {[%clk 0:00:30]}  Kf6 {[%clk 0:00:11]} 40. Rg8 {[%clk 0:00:29]}  Kxf7 {[%clk 0:00:10]} 41. Rg5 {[%clk 0:00:27]}  Ke6 {[%clk 0:00:10]} 42. Rg6+ {[%clk 0:00:27]}  Rf6 {[%clk 0:00:09]} 43. Rg8 {[%clk 0:00:27]}  Rf1+ {[%clk 0:00:09]} 44. Kd2 {[%clk 0:00:27]}  Ra1 {[%clk 0:00:08]} 45. b3 {[%clk 0:00:22]}  Ke5 {[%clk 0:00:08]} 46. Rg5+ {[%clk 0:00:21]}  Kd4 {[%clk 0:00:08]} 47. Rg4+ {[%clk 0:00:20]}  Kc5 {[%clk 0:00:09]} 48. Rg8 {[%clk 0:00:21]}  Rh1 {[%clk 0:00:08]} 49. Ra8 {[%clk 0:00:20]}  Kb6 {[%clk 0:00:08]} 50. Rd8 {[%clk 0:00:20]}  Kc6 {[%clk 0:00:08]} 51. Ra8 {[%clk 0:00:20]}  Kb6 {[%clk 0:00:08]} 52. Rd8 {[%clk 0:00:19]}  Rh5 {[%clk 0:00:08]} 53. Kd3 {[%clk 0:00:18]}  Rh3+ {[%clk 0:00:08]} 54. Kd2 {[%clk 0:00:16]}  Rh5 {[%clk 0:00:08]} 55. Kd3 {[%clk 0:00:16]}  Kc7 {[%clk 0:00:08]} 56. Ra8 {[%clk 0:00:16]}  Rh3+ {[%clk 0:00:08]} 57. Kd4 {[%clk 0:00:15]}  Kb6 {[%clk 0:00:08]} 58. Rc8 {[%clk 0:00:13]}  Rh5 {[%clk 0:00:09]} 59. Kd3 {[%clk 0:00:13]}  Rh3+ {[%clk 0:00:08]} 60. Kd4 {[%clk 0:00:13]}  Rh5 {[%clk 0:00:08]} 61. Kd3 {[%clk 0:00:13]}  Rh6 {[%clk 0:00:08]} 62. Kd4 {[%clk 0:00:13]}  Rc6 {[%clk 0:00:08]} 63. Rb8+ {[%clk 0:00:13]}  Kc7 {[%clk 0:00:08]} 64. Ra8 {[%clk 0:00:13]}  Kb6 {[%clk 0:00:08]} 65. Rb8+ {[%clk 0:00:12]}  Ka7 {[%clk 0:00:08]} 66. Rb5 {[%clk 0:00:11]}  Ka6 {[%clk 0:00:09]} 67. Rxd5 {[%clk 0:00:10]}  Rxc2 {[%clk 0:00:09]} 68. Rd6+ {[%clk 0:00:11]}  Kb5 {[%clk 0:00:09]} 69. Rd5+ {[%clk 0:00:11]}  Kb6 {[%clk 0:00:09]} 70. Rh5 {[%clk 0:00:11]}  Rc3 {[%clk 0:00:09]} 71. Rh6+ {[%clk 0:00:11]}  Kb5 {[%clk 0:00:09]} 72. Rh5+ {[%clk 0:00:11]}  Kb6 {[%clk 0:00:09]} 73. Rh6+ {[%clk 0:00:12]}  Rc6 {[%clk 0:00:10]} 74. Rh5 {[%clk 0:00:11]}  Rd6+ {[%clk 0:00:10]} 75. Kc4 {[%clk 0:00:12]}  Rc6+ {[%clk 0:00:10]} 76. Kd4 {[%clk 0:00:12]}  Rg6 {[%clk 0:00:11]} 77. Rf5 {[%clk 0:00:11]}  Rg3 {[%clk 0:00:10]} 78. Rf6+ {[%clk 0:00:10]}  Kc7 {[%clk 0:00:10]} 79. Rf7+ {[%clk 0:00:09]}  Kc6 {[%clk 0:00:11]} 80. Rf6+ {[%clk 0:00:10]}  Kd7 {[%clk 0:00:11]} 81. Rf5 {[%clk 0:00:10]}  Rxb3 {[%clk 0:00:11]} 82. Rxa5 {[%clk 0:00:10]}  Ra3 {[%clk 0:00:11]} 83. Rxa3 {[%clk 0:00:09]}  bxa3 {[%clk 0:00:11]} 84. Kc3 {[%clk 0:00:10]}  a2 {[%clk 0:00:12]} 85. Kb2 {[%clk 0:00:10]}  a1=Q+ {[%clk 0:00:13]} 86. Kxa1 {[%clk 0:00:11]} 1/2-1/2


[Site "https://www.chess.com"]